[Event "Titled Tuesday Blitz August 08 Early 2023"]
[White "Doluhanova, Evgeniya"]
[Black "Bach Ngoc Thuy Duong"]
[WhiteFideId "14112035"]
[BlackFideId "12408956"]
[WhiteElo "2306"]
[BlackElo "2450"]
[Result "0-1"]
[Round "6"]
[TimeControl "180+1"]
[Date "2023.08.08"]
[WhiteClock "0:00:06"]
[BlackClock "0:00:09"]
[Board "169"]

1. Nf3 {[%clk 0:02:53]}  d5 {[%clk 0:02:56]} 2. g3 {[%clk 0:02:51]}  Bg4 {[%clk 0:02:53]} 3. Bg2 {[%clk 0:02:52]}  Nf6 {[%clk 0:02:53]} 4. O-O {[%clk 0:02:51]}  c6 {[%clk 0:02:54]} 5. b3 {[%clk 0:02:51]}  Nbd7 {[%clk 0:02:54]} 6. Bb2 {[%clk 0:02:50]}  e6 {[%clk 0:02:55]} 7. d3 {[%clk 0:02:50]}  Be7 {[%clk 0:02:51]} 8. Nbd2 {[%clk 0:02:51]}  O-O {[%clk 0:02:51]} 9. e4 {[%clk 0:02:51]}  h6 {[%clk 0:02:46]} 10. h3 {[%clk 0:02:50]}  Bh5 {[%clk 0:02:46]} 11. g4 {[%clk 0:02:51]}  Bg6 {[%clk 0:02:46]} 12. Nh4 {[%clk 0:02:48]}  Bh7 {[%clk 0:02:45]} 13. Nhf3 {[%clk 0:02:36]}  dxe4 {[%clk 0:02:43]} 14. dxe4 {[%clk 0:02:36]}  Nxe4 {[%clk 0:02:44]} 15. Nxe4 {[%clk 0:02:35]}  Bxe4 {[%clk 0:02:44]} 16. Re1 {[%clk 0:02:30]}  Bh7 {[%clk 0:02:43]} 17. Qe2 {[%clk 0:02:29]}  Bf6 {[%clk 0:02:31]} 18. c3 {[%clk 0:02:13]}  Qc7 {[%clk 0:02:21]} 19. Rad1 {[%clk 0:02:12]}  Rad8 {[%clk 0:02:20]} 20. Nd4 {[%clk 0:02:07]}  a6 {[%clk 0:02:14]} 21. Ba3 {[%clk 0:01:39]}  c5 {[%clk 0:02:11]} 22. Nxe6 {[%clk 0:01:34]}  fxe6 {[%clk 0:02:10]} 23. Qxe6+ {[%clk 0:01:34]}  Kh8 {[%clk 0:02:11]} 24. Qd5 {[%clk 0:01:10]}  b6 {[%clk 0:01:52]} 25. c4 {[%clk 0:01:06]}  Ne5 {[%clk 0:01:35]} 26. Qe6 {[%clk 0:00:53]}  Nd3 {[%clk 0:01:17]} 27. Re3 {[%clk 0:00:47]}  Nxf2 {[%clk 0:00:57]} 28. Rxd8 {[%clk 0:00:45]}  Qxd8 {[%clk 0:00:51]} 29. Kxf2 {[%clk 0:00:42]}  Bd4+ {[%clk 0:00:34]} 30. Kg3 {[%clk 0:00:26]}  Qc7+ {[%clk 0:00:29]} 31. Kh4 {[%clk 0:00:25]}  Bf6+ {[%clk 0:00:23]} 32. Kh5 {[%clk 0:00:19]}  Bg5 {[%clk 0:00:22]} 33. Be4 {[%clk 0:00:16]}  Bxe3 {[%clk 0:00:16]} 34. Bxh7 {[%clk 0:00:16]}  Kxh7 {[%clk 0:00:16]} 35. Qxe3 {[%clk 0:00:16]}  g6+ {[%clk 0:00:09]} 36. Kh4 {[%clk 0:00:06]}  g5+ {[%clk 0:00:09]} 0-1


[Site "https://www.chess.com"]

[Event "Titled Tuesday Blitz August 08 Early 2023"]
[White "TrompeterImEther"]
[Black "rionelG"]
[WhiteElo "2445"]
[BlackElo "2306"]
[Result "1-0"]
[Round "6"]
[TimeControl "180+1"]
[Date "2023.08.08"]
[WhiteClock "0:00:14"]
[BlackClock "0:00:00"]
[Board "170"]

1. e4 {[%clk 0:03:00]}  c5 {[%clk 0:02:38]} 2. Nf3 {[%clk 0:02:59]}  d6 {[%clk 0:02:38]} 3. d4 {[%clk 0:02:58]}  cxd4 {[%clk 0:02:39]} 4. Nxd4 {[%clk 0:02:59]}  Nf6 {[%clk 0:02:40]} 5. Nc3 {[%clk 0:03:00]}  a6 {[%clk 0:02:40]} 6. f3 {[%clk 0:03:00]}  e5 {[%clk 0:02:41]} 7. Nb3 {[%clk 0:03:01]}  Be7 {[%clk 0:02:41]} 8. Be3 {[%clk 0:03:01]}  Be6 {[%clk 0:02:41]} 9. Qd2 {[%clk 0:03:02]}  O-O {[%clk 0:02:35]} 10. O-O-O {[%clk 0:03:01]}  a5 {[%clk 0:02:35]} 11. a4 {[%clk 0:02:58]}  Nc6 {[%clk 0:02:34]} 12. Kb1 {[%clk 0:02:57]}  Nb4 {[%clk 0:02:34]} 13. g4 {[%clk 0:02:55]}  d5 {[%clk 0:02:30]} 14. g5 {[%clk 0:02:38]}  Nxe4 {[%clk 0:02:18]} 15. fxe4 {[%clk 0:02:16]}  d4 {[%clk 0:02:17]} 16. Nxd4 {[%clk 0:02:15]}  exd4 {[%clk 0:02:16]} 17. Qxd4 {[%clk 0:02:16]}  Qc7 {[%clk 0:02:07]} 18. Bb5 {[%clk 0:02:03]}  Rfd8 {[%clk 0:01:41]} 19. Qb6 {[%clk 0:02:01]}  Qxb6 {[%clk 0:01:41]} 20. Bxb6 {[%clk 0:02:02]}  Rxd1+ {[%clk 0:01:40]} 21. Rxd1 {[%clk 0:02:03]}  Bxg5 {[%clk 0:01:40]} 22. Nd5 {[%clk 0:01:59]}  Nxd5 {[%clk 0:01:05]} 23. exd5 {[%clk 0:01:57]}  Bf5 {[%clk 0:01:05]} 24. d6 {[%clk 0:01:56]}  Bd8 {[%clk 0:01:05]} 25. Bd4 {[%clk 0:01:35]}  h5 {[%clk 0:00:52]} 26. Bc3 {[%clk 0:01:29]}  Be6 {[%clk 0:00:48]} 27. Bd4 {[%clk 0:01:15]}  g5 {[%clk 0:00:39]} 28. c4 {[%clk 0:01:13]}  b6 {[%clk 0:00:33]} 29. b3 {[%clk 0:01:02]}  g4 {[%clk 0:00:23]} 30. Kc2 {[%clk 0:00:47]}  Bg5 {[%clk 0:00:15]} 31. Bxb6 {[%clk 0:00:41]}  Bf4 {[%clk 0:00:15]} 32. Bc6 {[%clk 0:00:27]}  Rb8 {[%clk 0:00:09]} 33. Bc7 {[%clk 0:00:25]}  Rc8 {[%clk 0:00:07]} 34. Be4 {[%clk 0:00:25]}  Rxc7 {[%clk 0:00:06]} 35. dxc7 {[%clk 0:00:25]}  Bxc7 {[%clk 0:00:07]} 36. c5 {[%clk 0:00:23]}  Bxh2 {[%clk 0:00:06]} 37. c6 {[%clk 0:00:20]}  Bc7 {[%clk 0:00:05]} 38. Rh1 {[%clk 0:00:19]}  g3 {[%clk 0:00:04]} 39. Rxh5 {[%clk 0:00:18]}  Kf8 {[%clk 0:00:03]} 40. Rb5 {[%clk 0:00:16]}  Ke7 {[%clk 0:00:03]} 41. b4 {[%clk 0:00:15]}  axb4 {[%clk 0:00:02]} 42. Rxb4 {[%clk 0:00:16]}  Kd6 {[%clk 0:00:00]} 43. Rb5 {[%clk 0:00:14]} 1-0


[Site "https://www.chess.com"]

[Event "Titled Tuesday Blitz August 08 Early 2023"]
[White "Fernandez Siles, Luis"]
[Black "maksimys18"]
[WhiteFideId "2209420"]
[WhiteElo "2303"]
[BlackElo "2445"]
[Result "1-0"]
[Round "6"]
[TimeControl "180+1"]
[Date "2023.08.08"]
[WhiteClock "0:00:16"]
[BlackClock "0:00:39"]
[Board "171"]

1. e4 {[%clk 0:03:00]}  e6 {[%clk 0:02:34]} 2. d4 {[%clk 0:02:59]}  d5 {[%clk 0:02:34]} 3. e5 {[%clk 0:02:57]}  c5 {[%clk 0:02:33]} 4. c3 {[%clk 0:02:57]}  Qb6 {[%clk 0:02:33]} 5. Nf3 {[%clk 0:02:56]}  Bd7 {[%clk 0:02:33]} 6. a3 {[%clk 0:02:56]}  Bb5 {[%clk 0:02:33]} 7. b4 {[%clk 0:02:53]}  cxd4 {[%clk 0:02:33]} 8. Bxb5+ {[%clk 0:02:52]}  Qxb5 {[%clk 0:02:33]} 9. cxd4 {[%clk 0:02:53]}  Qd7 {[%clk 0:02:32]} 10. O-O {[%clk 0:02:50]}  Nc6 {[%clk 0:02:31]} 11. Nc3 {[%clk 0:02:50]}  Nh6 {[%clk 0:02:31]} 12. Be3 {[%clk 0:02:23]}  Nf5 {[%clk 0:02:28]} 13. g4 {[%clk 0:02:22]}  Nh6 {[%clk 0:02:26]} 14. Ne1 {[%clk 0:02:14]}  f6 {[%clk 0:02:21]} 15. f4 {[%clk 0:02:13]}  Nf7 {[%clk 0:02:15]} 16. Nd3 {[%clk 0:02:03]}  Be7 {[%clk 0:02:15]} 17. f5 {[%clk 0:01:25]}  fxe5 {[%clk 0:02:10]} 18. dxe5 {[%clk 0:01:11]}  Ncxe5 {[%clk 0:02:05]} 19. Nf4 {[%clk 0:00:49]}  exf5 {[%clk 0:02:02]} 20. Nfxd5 {[%clk 0:00:42]}  Nxg4 {[%clk 0:01:56]} 21. Bc5 {[%clk 0:00:31]}  Bxc5+ {[%clk 0:01:54]} 22. bxc5 {[%clk 0:00:31]}  O-O {[%clk 0:01:54]} 23. Rxf5 {[%clk 0:00:27]}  Rad8 {[%clk 0:01:44]} 24. Qxg4 {[%clk 0:00:25]}  Kh8 {[%clk 0:01:36]} 25. Raf1 {[%clk 0:00:22]}  Rfe8 {[%clk 0:01:28]} 26. R5f4 {[%clk 0:00:18]}  Qxg4+ {[%clk 0:01:19]} 27. Rxg4 {[%clk 0:00:19]}  Ne5 {[%clk 0:01:19]} 28. Rgf4 {[%clk 0:00:19]}  Nd3 {[%clk 0:01:17]} 29. Rf7 {[%clk 0:00:19]}  Nxc5 {[%clk 0:01:17]} 30. Rc7 {[%clk 0:00:19]}  b6 {[%clk 0:01:16]} 31. Rff7 {[%clk 0:00:19]}  Re5 {[%clk 0:00:50]} 32. Rxg7 {[%clk 0:00:18]}  Rh5 {[%clk 0:00:49]} 33. Nf6 {[%clk 0:00:16]}  Ne6 {[%clk 0:00:38]} 34. Rxh7+ {[%clk 0:00:16]}  Rxh7 {[%clk 0:00:39]} 35. Rxh7# {[%clk 0:00:16]} 1-0


[Site "https://www.chess.com"]

[Event "Titled Tuesday Blitz August 08 Early 2023"]
[White "Rios Escobar, Adan"]
[Black "Afanasieva, Alexandra"]
[WhiteFideId "3403645"]
[BlackFideId "34126926"]
[WhiteElo "2441"]
[BlackElo "2304"]
[Result "0-1"]
[Round "6"]
[TimeControl "180+1"]
[Date "2023.08.08"]
[WhiteClock "0:00:03"]
[BlackClock "0:00:05"]
[Board "172"]

1. d4 {[%clk 0:02:48]}  d5 {[%clk 0:03:00]} 2. g3 {[%clk 0:02:37]}  Nf6 {[%clk 0:02:56]} 3. Nf3 {[%clk 0:02:37]}  c5 {[%clk 0:02:54]} 4. Bg2 {[%clk 0:02:36]}  Nc6 {[%clk 0:02:54]} 5. O-O {[%clk 0:02:35]}  cxd4 {[%clk 0:02:54]} 6. Nxd4 {[%clk 0:02:35]}  e5 {[%clk 0:02:55]} 7. Nxc6 {[%clk 0:02:35]}  bxc6 {[%clk 0:02:55]} 8. c4 {[%clk 0:02:35]}  Be6 {[%clk 0:02:55]} 9. Nc3 {[%clk 0:02:31]}  e4 {[%clk 0:02:55]} 10. cxd5 {[%clk 0:02:26]}  cxd5 {[%clk 0:02:55]} 11. Qa4+ {[%clk 0:02:26]}  Qd7 {[%clk 0:02:56]} 12. Qxd7+ {[%clk 0:02:23]}  Nxd7 {[%clk 0:02:54]} 13. Rd1 {[%clk 0:02:21]}  Nb6 {[%clk 0:02:43]} 14. Be3 {[%clk 0:02:14]}  Rd8 {[%clk 0:02:42]} 15. Nb5 {[%clk 0:02:00]}  Bd6 {[%clk 0:02:14]} 16. Nxa7 {[%clk 0:01:54]}  Nc4 {[%clk 0:02:14]} 17. Bd4 {[%clk 0:01:48]}  O-O {[%clk 0:02:08]} 18. Nb5 {[%clk 0:01:46]}  Be5 {[%clk 0:01:32]} 19. b3 {[%clk 0:01:41]}  Bxd4 {[%clk 0:01:23]} 20. Rxd4 {[%clk 0:01:42]}  Ne5 {[%clk 0:01:22]} 21. Rad1 {[%clk 0:01:34]}  Rc8 {[%clk 0:01:18]} 22. a4 {[%clk 0:01:23]}  Rc2 {[%clk 0:01:15]} 23. R4d2 {[%clk 0:01:18]}  Rfc8 {[%clk 0:01:10]} 24. h3 {[%clk 0:01:03]}  g6 {[%clk 0:00:54]} 25. Nd4 {[%clk 0:00:45]}  Rxd2 {[%clk 0:00:44]} 26. Rxd2 {[%clk 0:00:46]}  Rc1+ {[%clk 0:00:44]} 27. Kh2 {[%clk 0:00:46]}  Ra1 {[%clk 0:00:34]} 28. Rc2 {[%clk 0:00:34]}  Kg7 {[%clk 0:00:31]} 29. Nxe6+ {[%clk 0:00:31]}  fxe6 {[%clk 0:00:31]} 30. Rc7+ {[%clk 0:00:31]}  Kf6 {[%clk 0:00:25]} 31. Rxh7 {[%clk 0:00:30]}  Ra2 {[%clk 0:00:26]} 32. Bf1 {[%clk 0:00:26]}  d4 {[%clk 0:00:22]} 33. Kg1 {[%clk 0:00:20]}  d3 {[%clk 0:00:20]} 34. exd3 {[%clk 0:00:20]}  exd3 {[%clk 0:00:20]} 35. Rh8 {[%clk 0:00:20]}  d2 {[%clk 0:00:17]} 36. Rd8 {[%clk 0:00:20]}  Ra1 {[%clk 0:00:18]} 37. Kg2 {[%clk 0:00:14]}  d1=Q {[%clk 0:00:18]} 38. Rxd1 {[%clk 0:00:14]}  Rxd1 {[%clk 0:00:19]} 39. b4 {[%clk 0:00:14]}  Ra1 {[%clk 0:00:13]} 40. Bb5 {[%clk 0:00:12]}  Nf7 {[%clk 0:00:11]} 41. f4 {[%clk 0:00:12]}  Nd6 {[%clk 0:00:12]} 42. Bd7 {[%clk 0:00:12]}  Rb1 {[%clk 0:00:12]} 43. b5 {[%clk 0:00:12]}  Rb4 {[%clk 0:00:12]} 44. b6 {[%clk 0:00:12]}  Rxb6 {[%clk 0:00:12]} 45. Kf3 {[%clk 0:00:12]}  Rb3+ {[%clk 0:00:10]} 46. Kg4 {[%clk 0:00:13]}  Ra3 {[%clk 0:00:10]} 47. h4 {[%clk 0:00:11]}  Ne4 {[%clk 0:00:11]} 48. h5 {[%clk 0:00:11]}  Rxg3+ {[%clk 0:00:10]} 49. Kh4 {[%clk 0:00:11]}  gxh5 {[%clk 0:00:08]} 50. a5 {[%clk 0:00:11]}  Ra3 {[%clk 0:00:08]} 51. a6 {[%clk 0:00:11]}  Rxa6 {[%clk 0:00:08]} 52. f5 {[%clk 0:00:11]}  exf5 {[%clk 0:00:07]} 53. Bc8 {[%clk 0:00:11]}  Ra4 {[%clk 0:00:07]} 54. Kh3 {[%clk 0:00:09]}  Ng5+ {[%clk 0:00:07]} 55. Kg3 {[%clk 0:00:08]}  Ke5 {[%clk 0:00:07]} 56. Kh2 {[%clk 0:00:08]}  f4 {[%clk 0:00:07]} 57. Bd7 {[%clk 0:00:09]}  Ra3 {[%clk 0:00:08]} 58. Kg2 {[%clk 0:00:09]}  Ke4 {[%clk 0:00:08]} 59. Bc6+ {[%clk 0:00:09]}  Ke3 {[%clk 0:00:09]} 60. Bd5 {[%clk 0:00:09]}  f3+ {[%clk 0:00:08]} 61. Kg3 {[%clk 0:00:09]}  f2 {[%clk 0:00:08]} 62. Bc4 {[%clk 0:00:10]}  Rc3 {[%clk 0:00:07]} 63. Bb5 {[%clk 0:00:05]}  Rc1 {[%clk 0:00:07]} 64. Kg2 {[%clk 0:00:04]}  Ne4 {[%clk 0:00:06]} 65. Ba6 {[%clk 0:00:02]}  Nc3 {[%clk 0:00:04]} 66. Bc4 {[%clk 0:00:01]}  Ne2 {[%clk 0:00:05]} 67. Ba6 {[%clk 0:00:02]}  f1=Q+ {[%clk 0:00:05]} 68. Kh2 {[%clk 0:00:02]}  Qg1+ {[%clk 0:00:05]} 69. Kh3 {[%clk 0:00:03]}  Qg3# {[%clk 0:00:05]} 0-1


[Site "https://www.chess.com"]

[Event "Titled Tuesday Blitz August 08 Early 2023"]
[White "Sarkar, Justin"]
[Black "Mrudul Dehankar"]
[WhiteFideId "2010011"]
[BlackFideId "25096990"]
[WhiteElo "2246"]
[BlackElo "2441"]
[Result "0-1"]
[Round "6"]
[TimeControl "180+1"]
[Date "2023.08.08"]
[WhiteClock "0:00:00"]
[BlackClock "0:00:04"]
[Board "173"]

1. d4 {[%clk 0:02:41]}  Nf6 {[%clk 0:02:57]} 2. c4 {[%clk 0:02:40]}  e6 {[%clk 0:02:57]} 3. Nc3 {[%clk 0:02:40]}  Bb4 {[%clk 0:02:57]} 4. Bf4 {[%clk 0:02:39]}  c5 {[%clk 0:02:49]} 5. dxc5 {[%clk 0:02:34]}  Qa5 {[%clk 0:02:36]} 6. Bd2 {[%clk 0:02:00]}  Bxc5 {[%clk 0:02:21]} 7. e3 {[%clk 0:01:47]}  Qc7 {[%clk 0:02:15]} 8. Nf3 {[%clk 0:01:35]}  Nc6 {[%clk 0:02:15]} 9. Bd3 {[%clk 0:01:28]}  O-O {[%clk 0:02:14]} 10. O-O {[%clk 0:01:26]}  d5 {[%clk 0:02:01]} 11. cxd5 {[%clk 0:01:22]}  exd5 {[%clk 0:02:01]} 12. Rc1 {[%clk 0:01:18]}  Qe7 {[%clk 0:01:57]} 13. h3 {[%clk 0:01:09]}  Rd8 {[%clk 0:01:51]} 14. Na4 {[%clk 0:00:39]}  Bd6 {[%clk 0:01:47]} 15. Bc3 {[%clk 0:00:36]}  Ne4 {[%clk 0:01:47]} 16. Bd4 {[%clk 0:00:28]}  Bf5 {[%clk 0:01:42]} 17. Nc3 {[%clk 0:00:22]}  Bc7 {[%clk 0:00:43]} 18. Nb5 {[%clk 0:00:20]}  Bb8 {[%clk 0:00:40]} 19. a3 {[%clk 0:00:16]}  a6 {[%clk 0:00:40]} 20. Nc3 {[%clk 0:00:16]}  Bc7 {[%clk 0:00:41]} 21. Qe2 {[%clk 0:00:07]}  Rac8 {[%clk 0:00:30]} 22. Rfd1 {[%clk 0:00:07]}  Qe6 {[%clk 0:00:27]} 23. Bb1 {[%clk 0:00:05]}  Qh6 {[%clk 0:00:17]} 24. Qf1 {[%clk 0:00:02]}  Bg6 {[%clk 0:00:07]} 25. Ba2 {[%clk 0:00:02]}  Ne7 {[%clk 0:00:05]} 26. Ne2 {[%clk 0:00:02]}  Bh5 {[%clk 0:00:05]} 27. Ng3 {[%clk 0:00:01]}  Bxf3 {[%clk 0:00:05]} 28. gxf3 {[%clk 0:00:01]}  Nxg3 {[%clk 0:00:05]} 29. fxg3 {[%clk 0:00:02]}  Bxg3 {[%clk 0:00:05]} 30. f4 {[%clk 0:00:02]}  Bh4 {[%clk 0:00:05]} 31. Qg2 {[%clk 0:00:02]}  Bf6 {[%clk 0:00:05]} 32. Bxf6 {[%clk 0:00:01]}  Qxf6 {[%clk 0:00:05]} 33. Rxc8 {[%clk 0:00:01]}  Rxc8 {[%clk 0:00:06]} 34. Bxd5 {[%clk 0:00:01]}  Rd8 {[%clk 0:00:05]} 35. Bf3 {[%clk 0:00:00]}  Qb6 {[%clk 0:00:04]} 0-1


[Site "https://www.chess.com"]

[Event "Titled Tuesday Blitz August 08 Early 2023"]
[White "EvgenyBurmakin"]
[Black "Warchol, Kamil"]
[BlackFideId "21858241"]
[WhiteElo "2237"]
[BlackElo "2440"]
[Result "0-1"]
[Round "6"]
[TimeControl "180+1"]
[Date "2023.08.08"]
[WhiteClock "0:00:00"]
[BlackClock "0:00:05"]
[Board "174"]

1. e4 {[%clk 0:03:00]}  c5 {[%clk 0:02:55]} 2. Nc3 {[%clk 0:02:57]}  a6 {[%clk 0:02:54]} 3. a4 {[%clk 0:02:56]}  e6 {[%clk 0:02:54]} 4. Nf3 {[%clk 0:02:48]}  Nc6 {[%clk 0:02:43]} 5. d4 {[%clk 0:02:47]}  cxd4 {[%clk 0:02:39]} 6. Nxd4 {[%clk 0:02:48]}  Nf6 {[%clk 0:02:37]} 7. Nxc6 {[%clk 0:02:34]}  bxc6 {[%clk 0:02:38]} 8. e5 {[%clk 0:02:32]}  Nd5 {[%clk 0:02:38]} 9. Ne4 {[%clk 0:02:16]}  Qc7 {[%clk 0:02:32]} 10. f4 {[%clk 0:01:57]}  Qb6 {[%clk 0:02:23]} 11. a5 {[%clk 0:01:47]}  Qa7 {[%clk 0:02:05]} 12. Bd3 {[%clk 0:01:33]}  Be7 {[%clk 0:02:00]} 13. Qf3 {[%clk 0:01:24]}  Qc7 {[%clk 0:01:53]} 14. O-O {[%clk 0:01:19]}  f5 {[%clk 0:01:49]} 15. exf6 {[%clk 0:01:03]}  Nxf6 {[%clk 0:01:50]} 16. Bd2 {[%clk 0:01:00]}  O-O {[%clk 0:01:45]} 17. Bc3 {[%clk 0:00:59]}  Nd5 {[%clk 0:01:36]} 18. Bd2 {[%clk 0:00:58]}  c5 {[%clk 0:01:29]} 19. Ra4 {[%clk 0:00:53]}  Bb7 {[%clk 0:01:20]} 20. Qg3 {[%clk 0:00:48]}  Nf6 {[%clk 0:01:14]} 21. Bc3 {[%clk 0:00:44]}  Bc6 {[%clk 0:01:06]} 22. Raa1 {[%clk 0:00:37]}  Bb5 {[%clk 0:00:55]} 23. Rad1 {[%clk 0:00:27]}  Qb7 {[%clk 0:00:43]} 24. f5 {[%clk 0:00:17]}  Bxd3 {[%clk 0:00:40]} 25. cxd3 {[%clk 0:00:15]}  d5 {[%clk 0:00:31]} 26. Ng5 {[%clk 0:00:09]}  d4 {[%clk 0:00:31]} 27. Nxe6 {[%clk 0:00:09]}  Rf7 {[%clk 0:00:28]} 28. Bd2 {[%clk 0:00:09]}  Nd5 {[%clk 0:00:22]} 29. Bh6 {[%clk 0:00:08]}  Bf6 {[%clk 0:00:23]} 30. Rde1 {[%clk 0:00:08]}  Kh8 {[%clk 0:00:22]} 31. Bg5 {[%clk 0:00:07]}  Qxb2 {[%clk 0:00:20]} 32. Bxf6 {[%clk 0:00:06]}  Nxf6 {[%clk 0:00:21]} 33. Ng5 {[%clk 0:00:05]}  Rd7 {[%clk 0:00:15]} 34. Re6 {[%clk 0:00:06]}  Qb7 {[%clk 0:00:14]} 35. Rfe1 {[%clk 0:00:06]}  h6 {[%clk 0:00:10]} 36. Qh4 {[%clk 0:00:06]}  Rc8 {[%clk 0:00:08]} 37. Rxf6 {[%clk 0:00:06]}  gxf6 {[%clk 0:00:04]} 38. Qxh6+ {[%clk 0:00:06]}  Kg8 {[%clk 0:00:05]} 39. Qxf6 {[%clk 0:00:05]}  Rg7 {[%clk 0:00:03]} 40. h4 {[%clk 0:00:03]}  Rf8 {[%clk 0:00:01]} 41. Qe6+ {[%clk 0:00:03]}  Rgf7 {[%clk 0:00:02]} 42. Nxf7 {[%clk 0:00:02]}  Qxf7 {[%clk 0:00:03]} 43. Qxf7+ {[%clk 0:00:02]}  Rxf7 {[%clk 0:00:03]} 44. g4 {[%clk 0:00:02]}  Rb7 {[%clk 0:00:04]} 45. g5 {[%clk 0:00:00]}  Rb3 {[%clk 0:00:05]} 0-1


[Site "https://www.chess.com"]

[Event "Titled Tuesday Blitz August 08 Early 2023"]
[White "Novikov, Evgenij"]
[Black "Falbo, Sandro"]
[WhiteFideId "4125380"]
[BlackFideId "810444"]
[WhiteElo "2439"]
[BlackElo "2205"]
[Result "1-0"]
[Round "6"]
[TimeControl "180+1"]
[Date "2023.08.08"]
[WhiteClock "0:00:09"]
[BlackClock "0:00:00"]
[Board "175"]

1. e4 {[%clk 0:03:00]}  c5 {[%clk 0:02:58]} 2. Nf3 {[%clk 0:02:59]}  Nc6 {[%clk 0:02:59]} 3. b4 {[%clk 0:02:59]}  Nxb4 {[%clk 0:02:57]} 4. c3 {[%clk 0:02:58]}  Nc6 {[%clk 0:02:57]} 5. d4 {[%clk 0:02:58]}  d5 {[%clk 0:02:56]} 6. e5 {[%clk 0:02:55]}  Bf5 {[%clk 0:02:51]} 7. Be2 {[%clk 0:02:41]}  e6 {[%clk 0:02:50]} 8. O-O {[%clk 0:02:39]}  Nge7 {[%clk 0:02:40]} 9. Ba3 {[%clk 0:02:16]}  cxd4 {[%clk 0:02:38]} 10. cxd4 {[%clk 0:02:16]}  Ng6 {[%clk 0:02:36]} 11. Bxf8 {[%clk 0:02:16]}  Nxf8 {[%clk 0:02:36]} 12. Nc3 {[%clk 0:02:05]}  a6 {[%clk 0:02:32]} 13. Qb3 {[%clk 0:02:00]}  Rb8 {[%clk 0:02:27]} 14. Na4 {[%clk 0:01:31]}  Nd7 {[%clk 0:02:24]} 15. Rac1 {[%clk 0:01:24]}  O-O {[%clk 0:02:19]} 16. Nc5 {[%clk 0:01:13]}  Nxc5 {[%clk 0:02:13]} 17. Rxc5 {[%clk 0:01:14]}  Na5 {[%clk 0:01:49]} 18. Qb4 {[%clk 0:01:09]}  b5 {[%clk 0:01:45]} 19. a4 {[%clk 0:01:00]}  Nc4 {[%clk 0:01:43]} 20. axb5 {[%clk 0:00:58]}  axb5 {[%clk 0:01:42]} 21. Rxb5 {[%clk 0:00:57]}  Rxb5 {[%clk 0:01:41]} 22. Qxb5 {[%clk 0:00:58]}  Qc7 {[%clk 0:01:34]} 23. Rc1 {[%clk 0:00:54]}  Rc8 {[%clk 0:01:33]} 24. Nd2 {[%clk 0:00:42]}  Rb8 {[%clk 0:01:26]} 25. Qa4 {[%clk 0:00:40]}  Qd8 {[%clk 0:01:17]} 26. Nxc4 {[%clk 0:00:38]}  dxc4 {[%clk 0:01:17]} 27. Qxc4 {[%clk 0:00:39]}  Be4 {[%clk 0:01:08]} 28. Rd1 {[%clk 0:00:35]}  g6 {[%clk 0:01:06]} 29. Qc3 {[%clk 0:00:32]}  Rc8 {[%clk 0:01:03]} 30. Qe3 {[%clk 0:00:31]}  Qd5 {[%clk 0:00:52]} 31. Bf3 {[%clk 0:00:30]}  Bxf3 {[%clk 0:00:49]} 32. Qxf3 {[%clk 0:00:31]}  Qxf3 {[%clk 0:00:42]} 33. gxf3 {[%clk 0:00:32]}  g5 {[%clk 0:00:38]} 34. Kg2 {[%clk 0:00:29]}  Rd8 {[%clk 0:00:29]} 35. Kg3 {[%clk 0:00:28]}  Kg7 {[%clk 0:00:29]} 36. f4 {[%clk 0:00:28]}  Kg6 {[%clk 0:00:22]} 37. Kf3 {[%clk 0:00:25]}  Kf5 {[%clk 0:00:18]} 38. fxg5 {[%clk 0:00:25]}  Kxg5 {[%clk 0:00:18]} 39. Ke4 {[%clk 0:00:25]}  Kg4 {[%clk 0:00:16]} 40. Rd3 {[%clk 0:00:26]}  h5 {[%clk 0:00:15]} 41. Rg3+ {[%clk 0:00:24]}  Kh4 {[%clk 0:00:14]} 42. Rf3 {[%clk 0:00:25]}  Rd7 {[%clk 0:00:12]} 43. h3 {[%clk 0:00:24]}  Kg5 {[%clk 0:00:12]} 44. Rg3+ {[%clk 0:00:21]}  Kh4 {[%clk 0:00:11]} 45. Rd3 {[%clk 0:00:21]}  Kg5 {[%clk 0:00:11]} 46. f4+ {[%clk 0:00:20]}  Kh4 {[%clk 0:00:09]} 47. f5 {[%clk 0:00:17]}  Kg5 {[%clk 0:00:08]} 48. f6 {[%clk 0:00:17]}  Kh4 {[%clk 0:00:07]} 49. d5 {[%clk 0:00:14]}  exd5+ {[%clk 0:00:06]} 50. Rxd5 {[%clk 0:00:14]}  Ra7 {[%clk 0:00:07]} 51. Rd3 {[%clk 0:00:12]}  Ra4+ {[%clk 0:00:06]} 52. Kf5 {[%clk 0:00:10]}  Ra5 {[%clk 0:00:05]} 53. Rd7 {[%clk 0:00:09]}  Kxh3 {[%clk 0:00:03]} 54. Rxf7 {[%clk 0:00:08]}  Kg3 {[%clk 0:00:02]} 55. Rg7+ {[%clk 0:00:08]}  Kf3 {[%clk 0:00:00]} 56. f7 {[%clk 0:00:09]} 1-0


[Site "https://www.chess.com"]

[Event "Titled Tuesday Blitz August 08 Early 2023"]
[White "Aepfler, Christian"]
[Black "Kukreja Sankalp"]
[WhiteFideId "4628306"]
[BlackFideId "45027676"]
[WhiteElo "2097"]
[BlackElo "2419"]
[Result "0-1"]
[Round "6"]
[TimeControl "180+1"]
[Date "2023.08.08"]
[WhiteClock "0:01:13"]
[BlackClock "0:01:24"]
[Board "180"]

1. e4 {[%clk 0:03:00]}  c5 {[%clk 0:02:57]} 2. c3 {[%clk 0:02:59]}  d5 {[%clk 0:02:55]} 3. exd5 {[%clk 0:02:59]}  Qxd5 {[%clk 0:02:56]} 4. d4 {[%clk 0:03:00]}  Nc6 {[%clk 0:02:53]} 5. Nf3 {[%clk 0:03:00]}  cxd4 {[%clk 0:02:53]} 6. cxd4 {[%clk 0:03:00]}  e5 {[%clk 0:02:53]} 7. Nc3 {[%clk 0:03:00]}  Bb4 {[%clk 0:02:53]} 8. Bd2 {[%clk 0:03:00]}  Bxc3 {[%clk 0:02:52]} 9. Bxc3 {[%clk 0:03:00]}  e4 {[%clk 0:02:52]} 10. Ne5 {[%clk 0:03:01]}  Nxe5 {[%clk 0:02:52]} 11. dxe5 {[%clk 0:03:02]}  Ne7 {[%clk 0:02:53]} 12. Be2 {[%clk 0:02:58]}  O-O {[%clk 0:02:51]} 13. O-O {[%clk 0:02:58]}  Be6 {[%clk 0:02:50]} 14. f3 {[%clk 0:02:57]}  Rfd8 {[%clk 0:02:44]} 15. Qa4 {[%clk 0:02:47]}  Qc5+ {[%clk 0:02:30]} 16. Kh1 {[%clk 0:02:46]}  Nd5 {[%clk 0:02:25]} 17. Rac1 {[%clk 0:02:30]}  Nxc3 {[%clk 0:02:20]} 18. Rxc3 {[%clk 0:02:23]}  Qxe5 {[%clk 0:02:20]} 19. Qxe4 {[%clk 0:02:04]}  Qxe4 {[%clk 0:02:18]} 20. fxe4 {[%clk 0:02:04]}  Rd2 {[%clk 0:02:18]} 21. Bf3 {[%clk 0:02:00]}  Rxb2 {[%clk 0:02:17]} 22. a3 {[%clk 0:01:54]}  g6 {[%clk 0:02:13]} 23. e5 {[%clk 0:01:54]}  Rd8 {[%clk 0:02:13]} 24. Rc7 {[%clk 0:01:52]}  Rd7 {[%clk 0:02:00]} 25. Rxd7 {[%clk 0:01:52]}  Bxd7 {[%clk 0:02:01]} 26. h4 {[%clk 0:01:53]}  h5 {[%clk 0:01:59]} 27. Rc1 {[%clk 0:01:48]}  Rb3 {[%clk 0:01:40]} 28. Rc7 {[%clk 0:01:45]}  Be6 {[%clk 0:01:38]} 29. a4 {[%clk 0:01:35]}  Rb4 {[%clk 0:01:35]} 30. a5 {[%clk 0:01:32]}  Rxh4+ {[%clk 0:01:35]} 31. Kg1 {[%clk 0:01:32]}  Ra4 {[%clk 0:01:34]} 32. Rc5 {[%clk 0:01:28]}  b6 {[%clk 0:01:23]} 33. axb6 {[%clk 0:01:28]}  axb6 {[%clk 0:01:23]} 34. Rb5 {[%clk 0:01:13]}  Ra5 {[%clk 0:01:24]} 0-1


[Site "https://www.chess.com"]